Cogmind - Beta 13 @@@ ROGUE MODE // 2024.04.02 @ 22:32:19 Player: complexblob Result: Destroyed by 5J-0NO(z) with Makeshift Spear Performance ------------- Evolutions (1) 500 Regions Visited (5) 1000 Robots Destroyed (27) 135 Value Destroyed (678) 678 Prototype IDs (3) 60 Alien Tech Used (0) 0 Bonus (42) 42 TOTAL SCORE: 2415 Bonus ------- High Alert Combat Kills 30 Follower Combat Kills 35 Friendly Fire -23 Cogmind --------- Core Integrity 0/400 Matter 300/300 Energy 100/100 System Corruption 3% Temperature Cool (0) Movement Core (350) Ox6 Location -7/Zion Parts ------- > --- POWER (1) -------- (None) > --- PROPULSION (3) --- (None) > --- UTILITY (3) ------ Large Storage Unit > --- WEAPON (2) ------- (None) > --- INVENTORY (15) --- Light Ion Engine Micro Nuclear Core Aluminum Leg Improved Aluminum Leg Improved Heat Sink Coolant Injector Kinecellerator Weapon Cycler Component Analysis Suite Improved EM Shotgun Heavy Laser KE Penetrator Proton Missile Launcher Heavy Missile Launcher Power Maul Peak State ------------ > --- POWER ------------ Ion Engine > --- PROPULSION ------- Improved Aluminum Leg Combat Airjet Combat Airjet > --- UTILITY ---------- Large Storage Unit Kinecellerator Propulsion Shielding > --- WEAPON ----------- Beamcaster Advanced Beam Cannon > --- INVENTORY -------- Light Ion Engine Micro Nuclear Core Aluminum Leg Improved Aluminum Leg Improved Heat Sink Coolant Injector Weapon Cycler Improved Medium Armor Plating Component Analysis Suite Improved EM Shotgun Heavy Laser KE Penetrator Proton Missile Launcher Heavy Missile Launcher Power Maul [Rating: 32] Favorites ----------- Power Ion Engine Engine Ion Engine Power Core Micro Nuclear Core Propulsion Combat Airjet Leg Aluminum Leg Wheel Wheel Hover Unit Combat Airjet Utility Propulsion Shielding Device Kinecellerator Storage Large Storage Unit Processor Launcher Guidance Computer Protection Propulsion Shielding Weapon Advanced Beam Cannon Energy Gun Medium Laser Energy Cannon Advanced Beam Cannon Ballistic Gun Light Assault Rifle Launcher Rocket Launcher Build | -11 -10 -10 -9 -9 -7 ------- Run | Yrd Mat Min Mat Min Zio Slots Evolved 2 | . . . 2 . . Power . | . . . . . . Propulsion 1 | . . . 1 . . Utility 1 | . . . 1 . . Weapon . | . . . . . . Parts Attached 43 | 7 11 10 9 5 1 Power 6 | 1 . 2 1 2 . Engine 5 | 1 . 2 1 1 . Core 1 | . . . . 1 . Reactor . | . . . . . . Propulsion 12 | 4 3 4 . 1 . Treads . | . . . . . . Leg 5 | 2 . 2 . 1 . Wheel 5 | 2 3 . . . . Hover 2 | . . 2 . . . Flight . | . . . . . . Utility 11 | . 3 2 4 1 1 Device 4 | . 1 1 1 1 . Storage 3 | . 2 . 1 . . Processor 2 | . . 1 1 . . Hackware . | . . . . . . Protection 2 | . . . 1 . 1 Artifact . | . . . . . . Weapon 14 | 2 5 2 4 1 . Energy Gun 8 | 2 2 1 2 1 . Energy Cannon 2 | . . . 2 . . Ballistic Gun 2 | . 2 . . . . Ballistic Cannon . | . . . . . . Launcher 2 | . 1 1 . . . Special Weapon . | . . . . . . Impact Weapon . | . . . . . . Slashing Weapon . | . . . . . . Piercing Weapon . | . . . . . . Special Melee Weapon . | . . . . . . Unidentified Prototypes . | . . . . . . Parts Lost 10 | . 1 1 3 . 5 Power 2 | . . . 1 . 1 Propulsion 3 | . 1 1 . . 1 Utility 3 | . . . 1 . 2 Weapon 2 | . . . 1 . 1 Highest Loss Streak 5 | . 1 1 2 . 5 To Critical Strikes . | . . . . . . Average Slot Usage (%) 92 | . 96 99 76 90 97 Engine 8 | . 14 14 6 2 10 Core 2 | . . . . 8 . Leg 7 | . 8 19 . 2 10 Wheel 2 | . 18 1 . . . Hover 15 | . . 6 22 22 21 Device 12 | . 13 22 8 10 9 Storage 8 | . 13 1 . 11 11 Processor 3 | . . 4 14 . . Protection 6 | . . . 1 11 11 Energy Gun 9 | . 18 14 8 2 10 Energy Cannon 9 | . . . 6 19 11 Launcher 4 | . 5 14 7 . . Naked Turns . | . . . . . . Heaviest Build 42 | 7 20 20 32 40 42 Greatest Support 24 | 20 20 24 24 24 24 Greatest Overweight (x) 7 | . 1 1 1 1 7 Average Overweight (x) . | . . . . 1 1 Largest Inventory Capacity 15 | 5 10 10 15 15 15 Average Capacity 10 | 5 9 5 5 15 15 Most Carried 15 | 4 10 10 5 15 15 Average Carried 8 | 2 7 4 4 11 13 Final Capacity 15 | 5 10 5 15 15 15 Final Carried 15 | 4 10 5 4 13 15 Class Distribution -------------------- 55% | Mutant 44% | Scavenger-Mutant Dominant Class ---------------- Mutant | -10/Materials Mutant | -10/Mines Scavenger-Mutant | -9/Materials Mutant | -9/Mines Scavenger-Mutant | -7/Zion Resources | -11 -10 -10 -9 -9 -7 ----------- Run | Yrd Mat Min Mat Min Zio Matter Collected 1093 | 205 142 367 211 168 . Remotely . | . . . . . . Salvage Created 785 | 55 155 87 277 189 22 Parts 43 | 1 8 6 17 10 1 Haulers Intercepted 1 | . 1 . . . . Recyclers Shooed 1 | . . 1 . . . Parts Field Recycled . | . . . . . . Retrieved Matter . | . . . . . . Parts Self-Destructed 1 | . . . . . 1 Prevented . | . . . . . . Kills | -11 -10 -10 -9 -9 -7 ------- Run | Yrd Mat Min Mat Min Zio Combat Hostiles Destroyed 21 | 1 4 5 7 4 . Guns 5 | 1 3 . 1 . . Cannons 4 | . . . 1 3 . AOE 11 | . 1 5 5 . . Classes Destroyed 10 | 2 3 1 3 1 . Worker 5 | 1 1 1 2 . . Builder 1 | . . . 1 . . Hauler 1 | . 1 . . . . Recycler 1 | . 1 . . . . Watcher 1 | . . . 1 . . Swarmer 3 | . 3 . . . . Grunt 11 | 1 1 2 5 2 . Duelist 2 | . . . . 2 . Sentry 2 | . . . 2 . . Assembled 3 | . . 3 . . . Best Kill Streak 4 | 1 3 4 4 3 . Combat Bots Only 3 | 1 3 3 3 3 . Max Kills in Single Turn 3 | 1 2 3 2 1 . Gunslinging . | . . . . . . Exploded 3 | . 1 3 2 . . Melee . | . . . . . . Uniques/NPCs Destroyed . | . . . . . . Combat | -11 -10 -10 -9 -9 -7 -------- Run | Yrd Mat Min Mat Min Zio Hostile Shots Fired 205 | 7 41 12 42 14 89 Missed 66 | . 8 4 18 3 33 Damage Taken 2014 | 77 330 110 332 146 1019 Core 504 | 11 71 10 51 34 327 Absorbed by Shields 84 | . . 15 69 . . Redirected to Shielding 52 | . . . . 9 43 Core Remaining (%) 79 | 95 . 63 . . . Volleys Fired 76 | 14 21 12 21 7 1 Largest 2 | 2 2 2 2 2 2 Hottest 143 | 100 100 83 136 143 143 Shots Fired 146 | 28 42 20 40 14 2 Gun 97 | 28 37 11 18 2 1 Cannon 21 | . . . 8 12 1 Launcher 28 | . 5 9 14 . . Special . | . . . . . . Kinetic 4 | . 4 . . . . Thermal 114 | 28 33 11 26 14 2 Explosive 28 | . 5 9 14 . . Electromagnetic . | . . . . . . Robot Hit Streak 13 | 3 4 4 13 4 1 Robot Miss Streak 8 | 3 5 8 3 2 1 Penetration Max . | . . . . . . Secondary Targets . | . . . . . . Shots Hit Robots 66 | 12 13 8 24 8 1 Core Hits 50 | 3 9 13 20 4 1 Critical Kills 1 | . . . . 1 . Critical Parts Destroyed . | . . . . . . Critical Strikes 3 | . 2 . . 1 . Burn 2 | . 2 . . . . Meltdown 1 | . . . . 1 . Melee Attacks . | . . . . . . Impact . | . . . . . . Slashing . | . . . . . . Piercing . | . . . . . . Sneak Attacks . | . . . . . . Combat Hostiles . | . . . . . . Follow-up Attacks . | . . . . . . Damage Inflicted 2247 | 162 372 616 890 165 42 Guns 500 | 162 138 52 127 . 21 Cannons 267 | . . . 81 165 21 Explosions 1463 | . 217 564 682 . . Melee . | . . . . . . Ramming 17 | . 17 . . . . Kinetic 16 | . 16 . . . . Thermal 751 | 162 122 52 208 165 42 Explosive 1463 | . 217 564 682 . . Electromagnetic . | . . . . . . Impact . | . . . . . . Slashing . | . . . . . . Piercing . | . . . . . . Highest Corruption 3 | . . . . . 3 Average Corruption 3 | . . . . . 3 Corruption Purged . | . . . . . . Corruption Blocked . | . . . . . . Effects 2 | . . . . . 2 Matter Fused 1 | . . . . . 1 Energy Discharges 1 | . . . . . 1 Overload Shots . | . . . . . . Overflow Damage 39 | . 2 8 29 . . Projectiles 10 | . . . 10 . . Explosions 29 | . 2 8 19 . . Melee . | . . . . . . Knockbacks . | . . . . . . Impact . | . . . . . . Kinetic . | . . . . . . Secondary . | . . . . . . Self-Inflicted Damage 135 | . 57 23 55 . . Shots 5 | . 2 1 2 . . Rammed 1 | . 1 . . . . Targets Rammed 1 | . 1 . . . . Kicked . | . . . . . . Crushed . | . . . . . . Highest Temperature 454 | 237 349 102 132 454 72 Average Temperature 94 | 66 126 26 36 209 34 Received Heat Transfer 380 | 42 24 39 98 60 117 Effects 4 | . 2 . . 2 . Energy Bleed 1 | . 1 . . . . Matter Decay 1 | . 1 . . . . Short Circuit 2 | . . . . 2 . Siege Activations . | . . . . . . Robots Corrupted . | . . . . . . Combat Hostiles . | . . . . . . Parts Fried . | . . . . . . Impact Corruptions . | . . . . . . Robots Melted 1 | . . . . 1 . Combat Hostiles 1 | . . . . 1 . Parts Melted 2 | . 1 . . 1 . Heat Transferred 1917 | 481 506 125 435 296 74 Parts Sabotaged . | . . . . . . Parts Stolen . | . . . . . . Parts Stripped . | . . . . . . Power Chain Reactions . | . . . . . . Alert | -11 -10 -10 -9 -9 -7 ------- Run | Yrd Mat Min Mat Min Zio Peak Influence 522 | 25 212 327 522 252 . Initial 203 | . 16 82 127 203 . Average 183 | 2 100 166 361 202 . Maximum Alert Level 2 | . 1 1 2 1 . Low Security (%) 56 | 100 95 75 15 31 . Level 1 34 | . 4 24 38 68 . Level 2 8 | . . . 46 . . Level 3 . | . . . . . . Level 4 . | . . . . . . Level 5 . | . . . . . . High Security . | . . . . . . Max Security . | . . . . . . Squads Dispatched 3 | . . . 2 1 . Investigation 1 | . . . . 1 . Extermination . | . . . . . . Reinforcement 2 | . . . 2 . . Assault . | . . . . . . Garrison . | . . . . . . Intercept . | . . . . . . Searches Triggered . | . . . . . . Construction Impeded . | . . . . . . Haulers Reinforced . | . . . . . . Active Scanning Responses . | . . . . . . Cargo Convoy Interrupts . | . . . . . . Stealth | -11 -10 -10 -9 -9 -7 --------- Run | Yrd Mat Min Mat Min Zio Distress Signals 3 | . 2 . 1 . . Communications Jammed . | . . . . . . Distress Signals . | . . . . . . Times Spotted 73 | 1 10 18 12 9 23 Peak Tracking Total 23 | 1 7 11 3 3 23 Tactical Retreats 4 | . . 2 . 1 1 Traps | -11 -10 -10 -9 -9 -7 ------- Run | Yrd Mat Min Mat Min Zio Traps Triggered . | . . . . . . Indirectly . | . . . . . . Trap Hack Attempts . | . . . . . . Triggered . | . . . . . . Disarmed . | . . . . . . Reprogrammed . | . . . . . . Reused . | . . . . . . Traps Extracted . | . . . . . . Installed . | . . . . . . Triggered . | . . . . . . Machines | -11 -10 -10 -9 -9 -7 ---------- Run | Yrd Mat Min Mat Min Zio Machines Disabled 3 | . . . 2 1 . Max in Single Turn 1 | . . . 1 1 . Machines Repaired . | . . . . . . Machines Dismantled . | . . . . . . Machines Sabotaged . | . . . . . . Overloaded Fab Kills . | . . . . . . Hacking | -11 -10 -10 -9 -9 -7 --------- Run | Yrd Mat Min Mat Min Zio Machines Accessed 5 | . 1 . 3 1 . Terminals 3 | . 1 . 2 . . Fabricators . | . . . . . . Repair Stations . | . . . . . . Recycling Units . | . . . . . . Scanalyzers 1 | . . . 1 . . Garrison Access . | . . . . . . Total Hacks 13 | . 3 . 9 1 . Successful 11 | . 2 . 8 1 . Failed 2 | . 1 . 1 . . Catastrophic . | . . . . . . Database Lockouts . | . . . . . . Manual . | . . . . . . Terminals 10 | . 3 . 7 . . Fabricators . | . . . . . . Repair Stations . | . . . . . . Recycling Units . | . . . . . . Scanalyzers 2 | . . . 2 . . Garrison Access . | . . . . . . Terminal Hacks 9 | . 2 . 6 1 . Prototype ID Bank 1 | . 1 . . . . Open Door 1 | . . . . 1 . Recycling Unit Index 1 | . . . 1 . . Alert Level 1 | . . . 1 . . Locate Traps 1 | . . . 1 . . Maintenance Status 1 | . 1 . . . . Surveillance Status 1 | . . . 1 . . Hauler Manifests 1 | . . . 1 . . Zone Layout 1 | . . . 1 . . Fabricator Hacks . | . . . . . . Repair Station Hacks . | . . . . . . Recycling Unit Hacks . | . . . . . . Scanalyzer 2 | . . . 2 . . Insert Component 1 | . . . 1 . . Analyze 1 | . . . 1 . . Garrison Access Hacks . | . . . . . . Unauthorized Hacks . | . . . . . . Terminals . | . . . . . . Fabricators . | . . . . . . Repair Stations . | . . . . . . Recycling Units . | . . . . . . Scanalyzers . | . . . . . . Garrison Access . | . . . . . . Data Cores Recovered . | . . . . . . Used . | . . . . . . Hacking Detections 4 | . 1 . 3 . . Full Trace Events . | . . . . . . Feedback Events . | . . . . . . Feedback Blocked . | . . . . . . Robot Schematics Acquired . | . . . . . . Robots Built . | . . . . . . Authchips . | . . . . . . Time . | . . . . . . Total Robot Build Rating . | . . . . . . Part Schematics Acquired 1 | . . . 1 . . Parts Built . | . . . . . . Authchips . | . . . . . . Time . | . . . . . . Total Part Build Rating . | . . . . . . Parts Repaired . | . . . . . . Time . | . . . . . . Parts Recycled . | . . . . . . Recycled Matter . | . . . . . . Retrieved Matter . | . . . . . . Retrieved Components . | . . . . . . Parts Scanalyzed 1 | . . . 1 . . Part Schematics Acquired 1 | . . . 1 . . Parts Damaged . | . . . . . . Bothacking | -11 -10 -10 -9 -9 -7 ------------ Run | Yrd Mat Min Mat Min Zio Used RIF Installer . | . . . . . . Robots Hacked . | . . . . . . Non-combat . | . . . . . . Combat . | . . . . . . Robot Hacks Applied . | . . . . . . Relay Couplers Released . | . . . . . . Fabnet Peak Effective % . | . . . . . . Robots Rewired . | . . . . . . Allies Hacked . | . . . . . . Hacks Repelled . | . . . . . . Allies | -11 -10 -10 -9 -9 -7 -------- Run | Yrd Mat Min Mat Min Zio Total Allies 3 | . . 1 . 2 . Largest Group 2 | . . 1 . 2 2 Highest-Rated Group 45 | . . 31 . 45 40 Highest-Rated Ally 31 | . . 31 . 31 26 Total Orders . | . . . . . . Ally Attacks 23 | . . 21 . 2 . Total Damage 250 | . . 229 . 21 . Kills 8 | . . 8 . . . Allies Corrupted . | . . . . . . Allies Melted . | . . . . . . Intel | -11 -10 -10 -9 -9 -7 ------- Run | Yrd Mat Min Mat Min Zio Robot Analysis Total . | . . . . . . Derelict Logs Recovered 2 | . . . . 1 1 Drone Launches . | . . . . . . Drone Recoveries . | . . . . . . Exploration | -11 -10 -10 -9 -9 -7 ------------- Run | Yrd Mat Min Mat Min Zio Turns Passed 2371 | 212 320 374 334 580 551 Spaces Moved 1592 | 156 227 297 218 355 339 Core 20 | 19 . . . . 1 Treads . | . . . . . . Legs 307 | 86 46 175 . . . Wheels 244 | 51 181 12 . . . Hover 1021 | . . 110 218 355 338 Flight . | . . . . . . Fastest Speed 50 | 50 80 77 77 147 150 Average Speed 119 | 98 91 102 80 148 158 Slowest Speed 400 | 120 190 120 147 157 400 Overloaded Moves . | . . . . . . Propulsion Burnouts . | . . . . . . Robots Hopped . | . . . . . . Cave-ins Triggered . | . . . . . . Exploration Rate (%) 41 | 6 42 71 26 69 33 Regions Visited 5 Branch Regions 3 Pre-discovered Areas 3 | . . 1 . 1 1 Known Exits Taken . | . . . . . . Unknown Exits Taken 5 | 1 1 1 1 1 . Scrap Searched 2 | . . 1 . 1 . Spaces Dug 10 | . . 10 . . . Terrain Destroyed 215 | . 56 57 102 . . Melee . | . . . . . . Projectile . | . . . . . . AOE 215 | . 56 57 102 . . Terrain Rammed . | . . . . . . Walls Destroyed . | . . . . . . Machines Disabled . | . . . . . . Actions | -11 -10 -10 -9 -9 -7 --------- Run | Yrd Mat Min Mat Min Zio Total 1913 | 185 301 348 337 391 351 Wait 110 | . 13 8 75 10 4 Move 1587 | 155 226 296 217 354 339 Hop . | . . . . . . Pick Up 62 | 9 18 9 9 13 4 Fast Attach . | . . . . . . Attach 19 | 5 4 4 5 1 . Detach 1 | . 1 . . . . Swap 24 | 2 7 6 4 4 1 Drop 33 | . 10 13 6 2 2 Fire 76 | 14 21 12 21 7 1 Melee . | . . . . . . Ram 1 | . 1 . . . . Kick . | . . . . . . Crush . | . . . . . . Escape Stasis . | . . . . . . Rewire . | . . . . . . Trap . | . . . . . . Miscellaneous . | . . . . . . Route ------- -11/Scrapyard -10/Materials (discovered 2 exits: *Mat / [*Min]) -10/Mines (discovered 2 exits: *Mat x2) -9/Materials -9/Mines (discovered 2 exits: [*Mat] / [*Zio]) -7/Zion (discovered 1 exit: [*Pro]) History --------- Turn | Location | Event 2 | -11/Scrapyard | Met Revision 17 188 | -11/Scrapyard | Discovered new exit (range 8) 213 | -11/Scrapyard | Entered Materials 315 | -10/Materials | Build established: Mutant 499 | -10/Materials | Discovered new exit (range 9) 533 | -10/Materials | Discovered new exit (range 16) 533 | -10/Materials | Entered Mines 542 | -10/Mines | Escorted by a lone wolf Derelict 562 | -10/Mines | Learned location of Storage (-8) 749 | -10/Mines | Assembled infested the area 782 | -10/Mines | Met 8R-AWN 796 | -10/Mines | Discovered new exit (range 13) 822 | -10/Mines | Discovered new exit (range 15) 907 | -10/Mines | Entered Materials 907 | -9/Materials | Evolved 2 slots: Propulsion x1, Utility x1 1178 | -9/Materials | Build established: Scavenger-Mutant 1215 | -9/Materials | Discovered new exit (range 16) 1241 | -9/Materials | Entered Mines 1248 | -9/Mines | Met a Derelict shopkeep closing up shop 1254 | -9/Mines | Met a Derelict bent on vengeance 1372 | -9/Mines | Discovered new exit (range 8) 1390 | -9/Mines | A Derelict revealed a hidden shortcut to a safe place 1514 | -9/Mines | Learned location of Zion (-7) 1547 | -9/Mines | Build established: Mutant 1821 | -9/Mines | Entered Zion 1821 | -7/Zion | Accompanied by 2 allies 1871 | -7/Zion | Led the pair of lost Derelicts to a safe place 1898 | -7/Zion | Discovered new exit (range 12) 2002 | -7/Zion | Build established: Scavenger-Mutant 2245 | -7/Zion | Learned Factory security intel 2268 | -7/Zion | Learned location of Warlord (-5) 2269 | -7/Zion | Attacked by Zionites 2361 | -7/Zion | Core integrity fell below 50% 2371 | -7/Zion | Core integrity fell below 20% 2372 | -7/Zion | Destroyed by 5J-0NO(z) with Makeshift Spear Last Messages --------------- HG-UHZ(z) pulls a Mak. Shrapnel Gun out of the Twisted Machinery. X9-DKQ(z) destroyed. Imp. Aluminum Leg severed. KY-Q6O(z) suffers critical hit (Burn). KY-Q6O(z) destroyed. Beamcaster severed. Imp. Medium Armor Plating destroyed. Cmb. Airjet destroyed. SO-U5T(z) destroyed. 11-1BA(z) heat spikes uncontrollably. 11-1BA(z) overheating. Adv. Beam Cannon destroyed. JS-A3D(z) overheating. 11-1BA(z) overheating. JS-A3D(z) overheating. 11-1BA(z) pulls a Mak. Sword out of the Twisted Machinery. 11-1BA(z) overheating. 11-1BA(z) heat spikes uncontrollably. Map ----- +----------------------------------------------------+ | ????????????????? """""""#""" " #????????? | | ?????????????????"" """"#"""""" "" ##???????? | | ???????""""?????##"" ""##"" #???????? | | ?????? ?""#""" ""#"#" #???????? | | ?????? """""" """""" """ ##???????? | | ????? """ """""" """" " #????????? | | ????? "" """"" "#""" " ##????????? | | ????? """ "#""" ""#?????????? | | ???? """ "##"" ""#?????????? | | ???? "" """"""""""" "##?????????? | | ????? """##"" " ""#?????????? | | ?????? "" """ """"" " "##?????????? | | ??????????""""" """ """" " ""#?????????? | | ?????? "" """ """ " ""#?????????? | | ????? " "" ""#?????????? | | ???? " " "" "##?????????? | | ???? " """ "" ""#?????????? | | ????"""""" """ """"g """ "" """?????????? | | ????????"" """"" """""%= """ "" ""??????????? | | ???????? """##""""#""" """ "" "???????????? | | ?????? """#""""#"#z"zzz """ "" ???????????? | | ?????? ???######""""z=z z""" "" ????????????? | | ??????" ??????????##"" z%zz """ "" "?????????? | | ?????????????????##""" zzz "" "?????????? | | ?????????????????#"""" zlz "????????? | | ?????????????????##"" @ z" ????????? | | ??????????????????##"" """" "????????? | | ???????????????????##"" z """" """"""????????? | | ???????????????????#""" """""" """""#???#####? | | ???????????????????##"" #"#""" """#"#???# "## | | ???????????????????#""" #""#"" ""#????# """ | | ???????????????????##"" #"""" "###### """ | | ????????????????????#"" """" """"# | | ????????????????????#"" "" | | ??????????????????####" " "" | | ??????????????????#"""" " """""""""# | | ??????????????????##"" " """""""#### """ | | ??????????????????#"" " "#"#?# """ | | ??????????????????#"" """#?# "## | | ?????????????????#"""" """#?#####? | | ?????????????????##"""" """#???????? | | ??????????????????##"#" """????????? | | ???????????????????##""" """"" """#????????? | | ????????????????????#""" """#"" ""#"?????????? | | ????????????????????##"" """#"" """"??????????? | | ?????????????????????#"" "#"#"" ""#???????????? | | ?????????????????????"#" "????""""????????????? | | ??????????????????????"" ??????"##????????????? | | ??????????????????????"" ?????????????????????? | | ???????????????????????" ?????????????????????? | +----------------------------------------------------+ Best States ------------- Heat Dissipation 28 Energy Generation 15 Energy Capacity 250 Matter Stores 300 Matter Capacity 300 Sight Range 16 Robot Scan Range 14 Terrain Scan Density 10 Armor Coverage 225 Propulsion Shielding 33 Evasion (%) 55 Targeting Accuracy 6 Launcher Accuracy 20 Kinecelleration 30 Item Schematics ----------------- Imp. EM Shotgun | -9/Materials | Scanalyzed Robot Schematics ------------------ None Fabricated ------------ Nothing Alien Tech Used ----------------- None Achievements -------------- Crack Shot Hunted I Survived The Infestation It's Just You Remodeling Robot Respite Safety First Shopping List Storm Trooper Tourist Challenges ------------ None Game ------ Seed NeutronSiegeLance Manual? 0 Play Time 01:01:06 Cumulative 1.3 hours Start 2024.04.02 @ 18:43:35 End 2024.04.02 @ 22:32:19 Sessions 7 Manual Loads 0 Difficulty Rogue Special Mode None Game No. 2 Rogue 2 Adventurer 0 Explorer 0 Win Type - Total 0 Types 0/0/0/0/0/0/0/0/0 Lore% 1 Gallery% 3 Achievement% 5 Wizard Run 0 Options --------- Layout 1 ASCII 0 Keyboard 0 Movement Mouse Keybinds 0 Fullscreen 2 Font 24/Smallcaps Map View 50x35 Zoom Use 0% Tactical HUD 0 Map Filters NONE Filters NONE Steam 1 RUN: 87d033b2-9e6e-420d-b30c-19aea26c2b20